fUSD/lending_fUSD_20260630
["ID","MTS","AMOUNT","RATE_DAILY","PERIOD"]
[426719815,1782760250000,-3315.40782047,0.0003014,4]
[426719825,1782760250000,-3315.40782047,0.0003014,4]
[426719824,1782760250000,-3315.40782047,0.0003014,4]
[426719835,1782760250000,-7735.9515811,0.0003014,4]
[426719836,1782760250000,-7735.9515811,0.0003014,4]
[426719831,1782760250000,-7735.9515811,0.0003014,4]
[426719828,1782760250000,-7735.9515811,0.0003014,4]
[426719827,1782760250000,-7735.9515811,0.0003014,4]
[426719830,1782760250000,-7735.9515811,0.0003014,4]
[426719833,1782760250000,-7735.9515811,0.0003014,4]
[426719834,1782760250000,-7735.9515811,0.0003014,4]
[426719894,1782760251000,-12500.0,0.0003025,2]
[426719899,1782760251000,-2992.52506624,0.00030272,2]
[426719895,1782760251000,-2500.0,0.0003025,2]
[426719896,1782760251000,-25000.0,0.0003025,2]
[426719898,1782760251000,-2992.52506624,0.0003025,2]
[426719892,1782760251000,-188.0,0.00030247,30]
[426719893,1782760251000,-22500.0,0.0003025,2]
[426719891,1782760251000,-2992.52506624,0.00030224,2]
[426719900,1782760251000,-3565.0,0.00030281,2]
[426719901,1782760251000,-381.0,0.00030281,2]
[426719897,1782760251000,-12500.0,0.0003025,2]
[426719904,1782760251000,-1236.761,0.00030296,2]
[426719914,1782760251000,-12500.0,0.00030375,2]
[426719907,1782760251000,-5831.17,0.00030333,2]
[426719903,1782760251000,-1283.745,0.00030281,2]
[426719902,1782760251000,-1362.0,0.00030281,2]
[426719905,1782760251000,-3651.0,0.00030296,2]
[426719911,1782760251000,-251.0,0.0003036,2]
[426719906,1782760251000,-6087.0,0.00030296,2]
[426719909,1782760251000,-264.37604556,0.0003036,2]
[426719910,1782760251000,-251.0,0.0003036,2]
[426719908,1782760251000,-2191.18,0.00030333,2]
[426719913,1782760251000,-451.94,0.00030375,2]
[426719919,1782760251000,-152.5325826,0.00030477,7]
[426719889,1782760251000,-15871.90662225,0.000302,2]
[426719912,1782760251000,-251.0,0.0003036,2]
[426719890,1782760251000,-726.27,0.000302,7]
[426719864,1782760251000,-757.77236723,0.0003014,4]
[426719886,1782760251000,-1768.13,0.0003014,4]
[426719862,1782760251000,-757.77236723,0.0003014,4]
[426719863,1782760251000,-757.77236723,0.0003014,4]
[426719861,1782760251000,-757.77236723,0.0003014,4]
[426719915,1782760251000,-12500.0,0.00030375,2]
[426719865,1782760251000,-757.77236723,0.0003014,4]
[426719867,1782760251000,-1768.13552355,0.0003014,4]
[426719866,1782760251000,-757.77,0.0003014,4]
[426719869,1782760251000,-1768.13552355,0.0003014,4]
[426719870,1782760251000,-1768.13552355,0.0003014,4]
[426719874,1782760251000,-1768.13552355,0.0003014,4]
[426719868,1782760251000,-1768.13552355,0.0003014,4]
[426719872,1782760251000,-1768.13552355,0.0003014,4]
[426719884,1782760251000,-1768.13552355,0.0003014,4]
[426719871,1782760251000,-1768.13552355,0.0003014,4]
[426719876,1782760251000,-1768.13552355,0.0003014,4]
[426719875,1782760251000,-1768.13552355,0.0003014,4]
[426719877,1782760251000,-1768.13552355,0.0003014,4]
[426719881,1782760251000,-1768.13552355,0.0003014,4]
[426719880,1782760251000,-1768.13552355,0.0003014,4]
[426719879,1782760251000,-1768.13552355,0.0003014,4]
[426719885,1782760251000,-1768.13552355,0.0003014,4]
[426719888,1782760251000,-10349.91,0.000302,2]
[426719878,1782760251000,-1768.13552355,0.0003014,4]
[426719882,1782760251000,-1768.13552355,0.0003014,4]
[426719883,1782760251000,-1768.13552355,0.0003014,4]
[426719887,1782760251000,-152.5325826,0.0003018,5]
[426719873,1782760251000,-1768.13552355,0.0003014,4]
[426719920,1782760251000,-187.78548584,0.00030499,2]
[426719972,1782760251000,-2570.07,0.000308,7]
[426719916,1782760251000,-243.14,0.00030411,120]
[426719956,1782760251000,-251.0,0.0003069,2]
[426719950,1782760251000,-576.0,0.00030684,30]
[426719958,1782760251000,-251.0,0.0003069,2]
[426719957,1782760251000,-251.0,0.0003069,2]
[426719952,1782760251000,-305.11921922,0.0003069,2]
[426719949,1782760251000,-176.0,0.00030684,30]
[426719954,1782760251000,-251.0,0.0003069,2]
[426719951,1782760251000,-931.0,0.00030684,30]
[426719955,1782760251000,-251.0,0.0003069,2]
[426719960,1782760251000,-500.0,0.00030711,20]
[426719959,1782760251000,-251.0,0.0003069,2]
[426719963,1782760251000,-1000.0,0.00030735,2]
[426719962,1782760251000,-152.0,0.00030726,7]
[426719970,1782760251000,-1403.80608052,0.00030798,2]
[426719961,1782760251000,-500.0,0.00030711,20]
[426719964,1782760251000,-1000.0,0.00030736,2]
[426719967,1782760251000,-13490.65,0.0003075,2]
[426719968,1782760251000,-1222.46656599,0.00030798,2]
[426719966,1782760251000,-2500.0,0.0003075,2]
[426719969,1782760251000,-1297.33736626,0.00030798,2]
[426719965,1782760251000,-526.65,0.00030746,30]
[426719921,1782760251000,-12500.0,0.000305,2]
[426719973,1782760251000,-1645.2776185,0.0003084,2]
[426719975,1782760251000,-151.83365069,0.00030897,2]
[426719974,1782760251000,-12500.0,0.00030875,2]
[426719953,1782760251000,-251.0,0.0003069,2]
[426719948,1782760251000,-390.0,0.00030684,30]
[426719971,1782760251000,-1253.12877471,0.00030798,2]
[426719945,1782760251000,-241.0,0.00030674,30]
[426719944,1782760251000,-353.0,0.00030674,30]
[426719917,1782760251000,-279.98224209,0.00030411,60]
[426719923,1782760251000,-25000.0,0.000305,2]
[426719922,1782760251000,-2500.0,0.000305,2]
[426719924,1782760251000,-800.0,0.000305,2]
[426719928,1782760251000,-500.0,0.00030518,2]
[426719926,1782760251000,-151.83365069,0.00030502,2]
[426719925,1782760251000,-12500.0,0.000305,2]
[426719927,1782760251000,-500.0,0.00030511,5]
[426719930,1782760251000,-500.0,0.00030518,2]
[426719929,1782760251000,-500.0,0.00030518,2]
[426719931,1782760251000,-500.0,0.00030518,2]
[426719932,1782760251000,-444.54078268,0.00030518,2]
[426719918,1782760251000,-526.65,0.00030441,30]
[426719933,1782760251000,-293.37350368,0.00030574,2]
[426719934,1782760251000,-1881.66236553,0.00030597,2]
[426719942,1782760251000,-260.0,0.00030621,30]
[426719939,1782760251000,-901.0,0.00030621,30]
[426719937,1782760251000,-81829.0,0.000306,2]
[426719940,1782760251000,-199.0,0.00030621,30]
[426719943,1782760251000,-12500.0,0.00030625,2]
[426719935,1782760251000,-1692.76,0.000306,7]
[426719947,1782760251000,-241.0,0.00030684,30]
[426719946,1782760251000,-1071.0,0.00030674,30]
[426719936,1782760251000,-1632.96,0.000306,7]
[426719938,1782760251000,-197.0,0.00030621,30]
[426719941,1782760251000,-157.0,0.00030621,30]
[426720005,1782760252000,-526.65,0.00031355,30]
[426720013,1782760252000,-201.69235652,0.000315,2]
[426720006,1782760252000,-1080.90492825,0.00031374,15]
[426720001,1782760252000,-251.0,0.0003135,2]
[426720000,1782760252000,-251.0,0.0003135,2]
[426720008,1782760252000,-1692.76,0.000314,7]
[426720007,1782760252000,-12500.0,0.00031375,2]
[426720009,1782760252000,-5528.0,0.000314,3]
[426720010,1782760252000,-187.78548584,0.00031499,2]
[426720015,1782760252000,-5049.86853363,0.000315,2]
[426720014,1782760252000,-150.0,0.000315,2]
[426720017,1782760252000,-2570.07,0.000315,7]
[426720016,1782760252000,-800.0,0.000315,2]
[426720012,1782760252000,-194.0,0.000315,10]
[426720027,1782760252000,-267.42567251,0.000316,2]
[426720018,1782760252000,-1000.0,0.00031507,40]
[426720019,1782760252000,-751.58,0.00031507,4]
[426720021,1782760252000,-255.32571466,0.00031517,2]
[426720022,1782760252000,-259.2500239,0.00031517,2]
[426720020,1782760252000,-3429.57858817,0.00031507,120]
[426720004,1782760252000,-251.0,0.0003135,2]
[426720011,1782760252000,-12500.0,0.000315,2]
[426719995,1782760252000,-12500.0,0.0003125,2]
[426719987,1782760252000,-251.0,0.0003102,2]
[426719999,1782760252000,-251.0,0.0003135,2]
[426719982,1782760252000,-150.0,0.00031011,2]
[426719980,1782760252000,-800.0,0.00031,2]
[426719978,1782760252000,-12500.0,0.00031,2]
[426719976,1782760252000,-13000.0,0.00031,2]
[426719977,1782760252000,-2000.0,0.00031,120]
[426719981,1782760252000,-1000.0,0.00031,7]
[426719979,1782760252000,-1616.17,0.00031,2]
[426719984,1782760252000,-251.0,0.0003102,2]
[426719986,1782760252000,-251.0,0.0003102,2]
[426719983,1782760252000,-251.0,0.0003102,2]
[426720003,1782760252000,-251.0,0.0003135,2]
[426719985,1782760252000,-251.0,0.0003102,2]
[426719988,1782760252000,-251.0,0.0003102,2]
[426719993,1782760252000,-151.0,0.00031122,7]
[426719992,1782760252000,-500.0,0.00031074,6]
[426719990,1782760252000,-1929.84,0.0003104,14]
[426719991,1782760252000,-526.65,0.0003105,30]
[426719994,1782760252000,-12500.0,0.00031125,2]
[426719998,1782760252000,-1632.96,0.000313,7]
[426719997,1782760252000,-151.83365069,0.00031293,2]
[426720002,1782760252000,-251.0,0.0003135,2]
[426719996,1782760252000,-152.5325826,0.00031286,10]
[426719989,1782760252000,-251.0,0.0003102,2]
[426720025,1782760252000,-726.27,0.000316,7]
[426720037,1782760252000,-526.65,0.00031659,30]
[426720026,1782760252000,-267.42567253,0.000316,2]
[426720054,1782760252000,-247.65,0.00031904,3]
[426720061,1782760252000,-5000.0,0.00032,2]
[426720056,1782760252000,-3061.0,0.00031933,10]
[426720058,1782760252000,-276.65239106,0.00031964,7]
[426720060,1782760252000,-2155.6176,0.00032,2]
[426720062,1782760252000,-1771.56621233,0.00032,2]
[426720057,1782760252000,-526.65,0.00031963,30]
[426720059,1782760252000,-283.0,0.00031975,2]
[426720064,1782760252000,-2000.0,0.00032,32]
[426720063,1782760252000,-14621.65795589,0.00032,2]
[426720055,1782760252000,-350.0,0.00031916,22]
[426720065,1782760252000,-800.0,0.00032,5]
[426720066,1782760252000,-1632.96,0.00032,7]
[426720068,1782760252000,-532.0,0.00032022,7]
[426720069,1782760252000,-151.83365069,0.00032084,2]
[426720067,1782760252000,-2000.0,0.00032,7]
[426720073,1782760252000,-1108.29,0.000322,7]
[426720072,1782760252000,-500.0,0.00032198,7]
[426720071,1782760252000,-6895.33199901,0.00032112,5]
[426720074,1782760252000,-1692.76,0.000322,7]
[426720075,1782760252000,-2570.07,0.000322,7]
[426720023,1782760252000,-1881.66236551,0.0003153,2]
[426720070,1782760252000,-5528.0,0.000321,5]
[426720052,1782760252000,-12745.30157,0.00031763,2]
[426720033,1782760252000,-157.0,0.00031621,30]
[426720053,1782760252000,-39660.86561822,0.000319,7]
[426720051,1782760252000,-198.54921384,0.00031721,2]
[426720028,1782760252000,-267.42567251,0.000316,2]
[426720029,1782760252000,-247.54223219,0.000316,2]
[426720031,1782760252000,-901.0,0.00031621,30]
[426720030,1782760252000,-197.0,0.00031621,30]
[426720034,1782760252000,-260.0,0.00031621,30]
[426720024,1782760252000,-293.37350368,0.00031574,2]
[426720032,1782760252000,-199.0,0.00031621,30]
[426720039,1782760252000,-241.0,0.00031674,30]
[426720038,1782760252000,-353.0,0.00031674,30]
[426720035,1782760252000,-12306.37,0.00031625,2]
[426720036,1782760252000,-500.0,0.00031636,6]
[426720040,1782760252000,-1071.0,0.00031674,30]
[426720042,1782760252000,-251.0,0.0003168,2]
[426720043,1782760252000,-251.0,0.0003168,2]
[426720047,1782760252000,-576.0,0.00031684,30]
[426720045,1782760252000,-390.0,0.00031684,30]
[426720048,1782760252000,-931.0,0.00031684,30]
[426720050,1782760252000,-267.53529414,0.00031721,2]
[426720046,1782760252000,-176.0,0.00031684,30]
[426720044,1782760252000,-241.0,0.00031684,30]
[426720049,1782760252000,-151.83365069,0.00031688,2]
[426720041,1782760252000,-251.0,0.0003168,2]
[426720109,1782760253000,-576.0,0.00032684,30]
[426720111,1782760253000,-1991.62,0.000327,120]
[426720113,1782760253000,-1632.96,0.000327,7]
[426720112,1782760253000,-428.63,0.000327,120]
[426720114,1782760253000,-300.0,0.00032754,3]
[426720106,1782760253000,-241.0,0.00032684,30]
[426720110,1782760253000,-931.0,0.00032684,30]
[426720108,1782760253000,-176.0,0.00032684,30]
[426720107,1782760253000,-390.0,0.00032684,30]
[426720116,1782760253000,-278.0,0.00032773,2]
[426720105,1782760253000,-1071.0,0.00032674,30]
[426720115,1782760253000,-500.0,0.00032761,8]
[426720129,1782760253000,-500.0,0.00032876,2]
[426720118,1782760253000,-150.0,0.00032773,2]
[426720119,1782760253000,-4942.63368594,0.000328,2]
[426720120,1782760253000,-37893.30007821,0.00032848,5]
[426720121,1782760253000,-152.5325826,0.00032861,12]
[426720123,1782760253000,-500.0,0.00032876,14]
[426720124,1782760253000,-471.55124022,0.00032876,2]
[426720122,1782760253000,-151.83365069,0.00032874,2]
[426720125,1782760253000,-500.0,0.00032876,2]
[426720126,1782760253000,-500.0,0.00032876,2]
[426720128,1782760253000,-425.96581433,0.00032876,2]
[426720104,1782760253000,-241.0,0.00032674,30]
[426720117,1782760253000,-150.0,0.00032773,2]
[426720102,1782760253000,-260.0,0.00032621,30]
[426720090,1782760253000,-152.0,0.00032485,8]
[426720103,1782760253000,-353.0,0.00032674,30]
[426720076,1782760253000,-658.01,0.00032232,30]
[426720077,1782760253000,-431.88553251,0.00032232,2]
[426720080,1782760253000,-47464.75,0.00032232,7]
[426720079,1782760253000,-2089.8,0.00032232,7]
[426720078,1782760253000,-7929.91,0.00032232,7]
[426720081,1782760253000,-412.99,0.00032232,7]
[426720084,1782760253000,-914.53051847,0.000323,2]
[426720085,1782760253000,-6294.41763374,0.0003233,120]
[426720088,1782760253000,-1881.66236551,0.00032462,2]
[426720086,1782760253000,-150.0,0.00032333,7]
[426720087,1782760253000,-191.22957673,0.00032416,2]
[426720101,1782760253000,-157.0,0.00032621,30]
[426720083,1782760253000,-526.65,0.00032268,30]
[426720092,1782760253000,-1000.0,0.000325,120]
[426720135,1782760253000,-493.21589662,0.00032876,2]
[426720091,1782760253000,-2000.0,0.000325,33]
[426720094,1782760253000,-150.0,0.00032562,2]
[426720093,1782760253000,-800.0,0.000325,5]
[426720097,1782760253000,-1929.84,0.00032617,30]
[426720095,1782760253000,-526.65,0.00032572,30]
[426720100,1782760253000,-199.0,0.00032621,30]
[426720096,1782760253000,-195.58233579,0.00032574,7]
[426720098,1782760253000,-197.0,0.00032621,30]
[426720099,1782760253000,-901.0,0.00032621,30]
[426720089,1782760253000,-151.83365069,0.00032479,2]
[426720131,1782760253000,-500.0,0.00032876,2]
[426720082,1782760253000,-171932.27160954,0.0003226,2]
[426720132,1782760253000,-394.66195223,0.00032876,2]
[426720161,1782760253000,-1000.0,0.00032877,10]
[426720163,1782760253000,-1000.0,0.00032877,10]
[426720164,1782760253000,-1000.0,0.00032877,10]
[426720166,1782760253000,-1000.0,0.00032877,10]
[426720165,1782760253000,-1000.0,0.00032877,10]
[426720171,1782760253000,-1000.0,0.00032877,10]
[426720167,1782760253000,-1000.0,0.00032877,10]
[426720168,1782760253000,-1000.0,0.00032877,10]
[426720169,1782760253000,-1000.0,0.00032877,10]
[426720170,1782760253000,-1000.0,0.00032877,10]
[426720172,1782760253000,-455.0,0.00032877,10]
[426720162,1782760253000,-1000.0,0.00032877,10]
[426720173,1782760253000,-231.1,0.00032877,2]
[426720127,1782760253000,-277.39342328,0.00032876,2]
[426720176,1782760253000,-500.0,0.00032877,2]
[426720178,1782760253000,-526.65,0.00032877,30]
[426720180,1782760253000,-2570.07,0.000329,7]
[426720183,1782760253000,-2000.0,0.00033,33]
[426720182,1782760253000,-37678.82384476,0.00033,10]
[426720181,1782760253000,-1472.39499872,0.00033,7]
[426720177,1782760253000,-2000.0,0.00032877,50]
[426720179,1782760253000,-389.94,0.00032898,3]
[426720184,1782760253000,-500.0,0.00033,20]
[426720185,1782760253000,-500.0,0.00033,20]
[426720174,1782760253000,-168.11679378,0.00032877,2]
[426720156,1782760253000,-1000.0,0.00032877,10]
[426720175,1782760253000,-500.0,0.00032877,2]
[426720158,1782760253000,-1000.0,0.00032877,10]
[426720159,1782760253000,-1000.0,0.00032877,10]
[426720130,1782760253000,-361.91521911,0.00032876,2]
[426720136,1782760253000,-1000.0,0.00032877,10]
[426720133,1782760253000,-326.72808905,0.00032876,2]
[426720134,1782760253000,-448.54063852,0.00032876,2]
[426720138,1782760253000,-1000.0,0.00032877,10]
[426720148,1782760253000,-1000.0,0.00032877,10]
[426720139,1782760253000,-1000.0,0.00032877,10]
[426720141,1782760253000,-1000.0,0.00032877,10]
[426720142,1782760253000,-1000.0,0.00032877,10]
[426720140,1782760253000,-1000.0,0.00032877,10]
[426720143,1782760253000,-1000.0,0.00032877,10]
[426720137,1782760253000,-1000.0,0.00032877,10]
[426720147,1782760253000,-1000.0,0.00032877,10]
[426720157,1782760253000,-1000.0,0.00032877,10]
[426720145,1782760253000,-1000.0,0.00032877,10]
[426720152,1782760253000,-1000.0,0.00032877,10]
[426720154,1782760253000,-1000.0,0.00032877,10]
[426720155,1782760253000,-1000.0,0.00032877,10]
[426720160,1782760253000,-1000.0,0.00032877,10]
[426720153,1782760253000,-1000.0,0.00032877,10]
[426720151,1782760253000,-1000.0,0.00032877,10]
[426720150,1782760253000,-1000.0,0.00032877,10]
[426720149,1782760253000,-1000.0,0.00032877,10]
[426720146,1782760253000,-1000.0,0.00032877,10]
[426720144,1782760253000,-1000.0,0.00032877,10]
[426720209,1782760254000,-500.0,0.00033,20]
[426720206,1782760254000,-500.0,0.00033,20]
[426720208,1782760254000,-500.0,0.00033,20]
[426720207,1782760254000,-500.0,0.00033,20]
[426720205,1782760254000,-500.0,0.00033,20]
[426720215,1782760254000,-500.0,0.00033,20]
[426720218,1782760254000,-500.0,0.00033,20]
[426720212,1782760254000,-500.0,0.00033,20]
[426720214,1782760254000,-500.0,0.00033,20]
[426720211,1782760254000,-500.0,0.00033,20]
[426720210,1782760254000,-500.0,0.00033,20]
[426720219,1782760254000,-500.0,0.00033,20]
[426720204,1782760254000,-500.0,0.00033,20]
[426720213,1782760254000,-500.0,0.00033,20]
[426720203,1782760254000,-500.0,0.00033,20]
[426720188,1782760254000,-500.0,0.00033,20]
[426720201,1782760254000,-500.0,0.00033,20]
[426720194,1782760254000,-500.0,0.00033,20]
[426720187,1782760254000,-500.0,0.00033,20]
[426720186,1782760254000,-500.0,0.00033,20]
[426720189,1782760254000,-500.0,0.00033,20]
[426720190,1782760254000,-500.0,0.00033,20]
[426720191,1782760254000,-500.0,0.00033,20]
[426720199,1782760254000,-500.0,0.00033,20]
[426720192,1782760254000,-500.0,0.00033,20]
[426720195,1782760254000,-500.0,0.00033,20]
[426720200,1782760254000,-500.0,0.00033,20]
[426720202,1782760254000,-500.0,0.00033,20]
[426720196,1782760254000,-500.0,0.00033,20]
[426720197,1782760254000,-500.0,0.00033,20]
[426720198,1782760254000,-500.0,0.00033,20]
[426720193,1782760254000,-500.0,0.00033,20]
[426720216,1782760254000,-500.0,0.00033,20]
[426720221,1782760254000,-500.0,0.00033,20]
[426720217,1782760254000,-500.0,0.00033,20]
[426720240,1782760254000,-500.0,0.00033,20]
[426720239,1782760254000,-500.0,0.00033,20]
[426720242,1782760254000,-500.0,0.00033,20]
[426720251,1782760254000,-500.0,0.00033,20]
[426720250,1782760254000,-500.0,0.00033,20]
[426720252,1782760254000,-440.05,0.00033,20]
[426720241,1782760254000,-500.0,0.00033,20]
[426720245,1782760254000,-500.0,0.00033,20]
[426720248,1782760254000,-500.0,0.00033,20]
[426720247,1782760254000,-500.0,0.00033,20]
[426720249,1782760254000,-500.0,0.00033,20]
[426720244,1782760254000,-500.0,0.00033,20]
[426720253,1782760254000,-2000.0,0.00033,120]
[426720220,1782760254000,-500.0,0.00033,20]
[426720243,1782760254000,-500.0,0.00033,20]
[426720238,1782760254000,-500.0,0.00033,20]
[426720246,1782760254000,-500.0,0.00033,20]
[426720237,1782760254000,-500.0,0.00033,20]
[426720222,1782760254000,-500.0,0.00033,20]
[426720236,1782760254000,-500.0,0.00033,20]
[426720224,1782760254000,-500.0,0.00033,20]
[426720225,1782760254000,-500.0,0.00033,20]
[426720226,1782760254000,-500.0,0.00033,20]
[426720228,1782760254000,-500.0,0.00033,20]
[426720227,1782760254000,-500.0,0.00033,20]
[426720223,1782760254000,-500.0,0.00033,20]
[426720230,1782760254000,-500.0,0.00033,20]
[426720235,1782760254000,-500.0,0.00033,20]
[426720231,1782760254000,-500.0,0.00033,20]
[426720232,1782760254000,-500.0,0.00033,20]
[426720233,1782760254000,-500.0,0.00033,20]
[426720229,1782760254000,-500.0,0.00033,20]
[426720234,1782760254000,-500.0,0.00033,20]
[426720290,1782760255000,-526.65,0.00033486,30]
[426720287,1782760255000,-1881.66236551,0.00033395,2]
[426720286,1782760255000,-500.0,0.00033323,8]
[426720284,1782760255000,-645.3308,0.000333,20]
[426720283,1782760255000,-6087.0,0.00033296,2]
[426720289,1782760255000,-151.0,0.00033461,7]
[426720281,1782760255000,-1230.0,0.00033296,2]
[426720293,1782760255000,-2000.0,0.000335,34]
[426720288,1782760255000,-151.0,0.00033461,7]
[426720285,1782760255000,-798.0,0.00033303,7]
[426720291,1782760255000,-250.3806478,0.00033499,7]
[426720298,1782760255000,-156.520971,0.00033518,7]
[426720294,1782760255000,-497.9,0.000335,15]
[426720296,1782760255000,-362.255879,0.00033517,7]
[426720295,1782760255000,-800.0,0.000335,5]
[426720299,1782760255000,-1737.06,0.00033532,7]
[426720300,1782760255000,-195.58233579,0.00033574,7]
[426720297,1782760255000,-151.0,0.00033518,7]
[426720302,1782760255000,-300.0,0.00033588,2]
[426720312,1782760255000,-300.0,0.00033588,2]
[426720310,1782760255000,-496.30087066,0.00033588,2]
[426720282,1782760255000,-3651.0,0.00033296,2]
[426720292,1782760255000,-1239.20700929,0.000335,2]
[426720278,1782760255000,-283.0,0.00033281,2]
[426720263,1782760255000,-197.21,0.00033156,120]
[426720277,1782760255000,-3565.0,0.00033281,2]
[426720311,1782760255000,-368.9698289,0.00033588,2]
[426720260,1782760255000,-154.960337,0.00033,7]
[426720254,1782760255000,-497.9,0.00033,20]
[426720255,1782760255000,-1692.76,0.00033,30]
[426720261,1782760255000,-154.960337,0.00033,7]
[426720256,1782760255000,-800.0,0.00033,5]
[426720257,1782760255000,-195669.13696057,0.00033,2]
[426720259,1782760255000,-154.960337,0.00033,7]
[426720262,1782760255000,-9999.99999901,0.000331,2]
[426720265,1782760255000,-40000.0,0.000332,2]
[426720266,1782760255000,-390.280005,0.000332,7]
[426720264,1782760255000,-526.65,0.00033181,30]
[426720267,1782760255000,-390.280005,0.000332,7]
[426720268,1782760255000,-390.280005,0.000332,7]
[426720269,1782760255000,-390.280005,0.000332,7]
[426720270,1782760255000,-1443.491756,0.000332,7]
[426720272,1782760255000,-1443.491756,0.000332,7]
[426720271,1782760255000,-1443.491756,0.000332,7]
[426720273,1782760255000,-1443.491756,0.000332,7]
[426720279,1782760255000,-1362.0,0.00033281,2]
[426720280,1782760255000,-1278.0,0.00033281,2]
[426720275,1782760255000,-11629.6721321,0.00033223,2]
[426720276,1782760255000,-151.83365069,0.0003327,2]
[426720274,1782760255000,-4591.0,0.0003321,10]
[426720303,1782760255000,-300.0,0.00033588,2]
[426720258,1782760255000,-154.960337,0.00033,7]
[426720304,1782760255000,-300.0,0.00033588,2]
[426720347,1782760255000,-576.43989485,0.00033588,2]
[426720337,1782760255000,-300.0,0.00033588,2]
[426720336,1782760255000,-300.0,0.00033588,2]
[426720339,1782760255000,-300.0,0.00033588,2]
[426720338,1782760255000,-345.7536,0.00033588,2]
[426720340,1782760255000,-300.0,0.00033588,2]
[426720341,1782760255000,-300.0,0.00033588,2]
[426720343,1782760255000,-954.30228826,0.00033588,2]
[426720342,1782760255000,-300.0,0.00033588,2]
[426720344,1782760255000,-1807.30940739,0.00033588,2]
[426720345,1782760255000,-300.0,0.00033588,2]
[426720348,1782760255000,-300.0,0.00033588,2]
[426720351,1782760255000,-569.01654071,0.00033588,2]
[426720349,1782760255000,-311.22255108,0.00033588,2]
[426720352,1782760255000,-300.0,0.00033588,2]
[426720350,1782760255000,-300.0,0.00033588,2]
[426720353,1782760255000,-523.24060639,0.00033588,2]
[426720356,1782760255000,-300.0,0.00033588,2]
[426720357,1782760255000,-300.0,0.00033588,2]
[426720355,1782760255000,-300.0,0.00033588,2]
[426720358,1782760255000,-300.0,0.00033588,2]
[426720354,1782760255000,-300.0,0.00033588,2]
[426720305,1782760255000,-300.0,0.00033588,2]
[426720335,1782760255000,-300.0,0.00033588,2]
[426720334,1782760255000,-300.0,0.00033588,2]
[426720346,1782760255000,-300.0,0.00033588,2]
[426720330,1782760255000,-300.0,0.00033588,2]
[426720333,1782760255000,-300.0,0.00033588,2]
[426720307,1782760255000,-300.0,0.00033588,2]
[426720301,1782760255000,-300.0,0.00033588,2]
[426720308,1782760255000,-300.0,0.00033588,2]
[426720306,1782760255000,-300.0,0.00033588,2]
[426720309,1782760255000,-495.28773916,0.00033588,2]
[426720314,1782760255000,-300.0,0.00033588,2]
[426720322,1782760255000,-536.77715252,0.00033588,2]
[426720323,1782760255000,-300.0,0.00033588,2]
[426720316,1782760255000,-607.84242655,0.00033588,2]
[426720315,1782760255000,-300.0,0.00033588,2]
[426720317,1782760255000,-300.0,0.00033588,2]
[426720313,1782760255000,-300.0,0.00033588,2]
[426720321,1782760255000,-300.0,0.00033588,2]
[426720331,1782760255000,-300.0,0.00033588,2]
[426720326,1782760255000,-300.0,0.00033588,2]